[Event "*** Titled Tuesday Blitz"]
[Site "Chess.com"]
[Date "2018.05.01"]
[Round "5"]
[White "Ginger_GM"]
[Black "vugarrasulov"]
[Result "0-1"]
[WhiteElo "2479"]
[BlackElo "2728"]
[TimeControl "180+2"]
[EndTime "14:05:59 PDT"]
[Termination "vugarrasulov won by resignation"]

1. d4 {[%clk 0:03:00.2]} 1... Nf6 {[%clk 0:03:00.8]} 2. c4 {[%clk 0:02:55.6]}
2... e6 {[%clk 0:03:02.7]} 3. Nf3 {[%clk 0:02:56.2]} 3... b6 {[%clk 0:03:03.4]}
4. g3 {[%clk 0:02:54.6]} 4... Ba6 {[%clk 0:03:04.1]} 5. Qc2 {[%clk 0:02:55.4]}
5... Bb7 {[%clk 0:03:03]} 6. Bg2 {[%clk 0:02:56.1]} 6... Bb4+ {[%clk 0:03:03.3]}
7. Bd2 {[%clk 0:02:53]} 7... c5 {[%clk 0:03:01.4]} 8. d5 {[%clk 0:02:38.1]} 8...
exd5 {[%clk 0:02:58.1]} 9. O-O {[%clk 0:02:30.5]} 9... Bxd2 {[%clk 0:02:56.1]}
10. Nbxd2 {[%clk 0:02:30.9]} 10... d4 {[%clk 0:02:56.3]} 11. e3 {[%clk
0:02:28.6]} 11... dxe3 {[%clk 0:02:56.7]} 12. fxe3 {[%clk 0:02:29.2]} 12... O-O
{[%clk 0:02:57.4]} 13. Ng5 {[%clk 0:02:29.6]} 13... Bxg2 {[%clk 0:02:45.3]} 14.
Rxf6 {[%clk 0:02:27.5]} 14... g6 {[%clk 0:02:46.4]} 15. Qc3 {[%clk 0:02:10.2]}
15... d5 {[%clk 0:02:30.3]} 16. cxd5 {[%clk 0:01:45.6]} 16... Bxd5 {[%clk
0:02:30.9]} 17. Nde4 {[%clk 0:01:26.6]} 17... Bxe4 {[%clk 0:02:05.5]} 18. Nxe4
{[%clk 0:01:26.6]} 18... Qe7 {[%clk 0:01:59.7]} 19. Rf4 {[%clk 0:00:36.3]} 19...
Nd7 {[%clk 0:02:00]} 20. Rd1 {[%clk 0:00:30.2]} 20... f5 {[%clk 0:01:54]} 21.
Qc4+ {[%clk 0:00:27.8]} 21... Qf7 {[%clk 0:01:46]} 22. Qc3 {[%clk 0:00:14.4]}
22... Nf6 {[%clk 0:01:45.4]} 23. Ng5 {[%clk 0:00:14.9]} 23... Qe7 {[%clk
0:01:45.3]} 24. Qc4+ {[%clk 0:00:15.7]} 24... Kh8 {[%clk 0:01:46.2]} 25. e4
{[%clk 0:00:16.8]} 25... Nxe4 {[%clk 0:01:31]} 26. Nxe4 {[%clk 0:00:16.7]} 26...
fxe4 {[%clk 0:01:32.9]} 27. Rxe4 {[%clk 0:00:18.1]} 27... Qf6 {[%clk 0:01:33.1]}
28. Re2 {[%clk 0:00:17.5]} 28... Rae8 {[%clk 0:01:32.7]} 29. Rxe8 {[%clk
0:00:17.3]} 29... Qf2+ {[%clk 0:01:33.3]} 30. Kh1 {[%clk 0:00:17.4]} 30... Qf3+
{[%clk 0:01:35.2]} 0-1

[Event "*** Titled Tuesday Blitz"]
[Site "Chess.com"]
[Date "2018.05.01"]
[Round "5"]
[White "temiksmozg"]
[Black "Zaven_ChessMood"]
[Result "0-1"]
[WhiteElo "2594"]
[BlackElo "2862"]
[TimeControl "180+2"]
[EndTime "14:06:03 PDT"]
[Termination "Zaven_ChessMood won by resignation"]

1. d4 {[%clk 0:02:57.1]} 1... Nf6 {[%clk 0:02:59.1]} 2. c4 {[%clk 0:02:58.3]}
2... c5 {[%clk 0:03:00]} 3. d5 {[%clk 0:02:59.1]} 3... b5 {[%clk 0:03:01.3]} 4.
cxb5 {[%clk 0:03:00.2]} 4... a6 {[%clk 0:03:02.7]} 5. bxa6 {[%clk 0:03:00.7]}
5... g6 {[%clk 0:03:03.9]} 6. Nc3 {[%clk 0:02:51.7]} 6... Bg7 {[%clk 0:03:04.7]}
7. e4 {[%clk 0:02:51.3]} 7... O-O {[%clk 0:03:05.6]} 8. Nf3 {[%clk 0:02:50.6]}
8... Qa5 {[%clk 0:03:05.6]} 9. Bd2 {[%clk 0:02:50.2]} 9... Bxa6 {[%clk
0:03:05.2]} 10. Bxa6 {[%clk 0:02:51.3]} 10... Qxa6 {[%clk 0:03:05.9]} 11. Qe2
{[%clk 0:02:52.6]} 11... e6 {[%clk 0:03:06.7]} 12. dxe6 {[%clk 0:02:50.1]} 12...
fxe6 {[%clk 0:03:07.6]} 13. Qxa6 {[%clk 0:02:46.3]} 13... Nxa6 {[%clk
0:03:08.7]} 14. O-O {[%clk 0:02:43]} 14... d5 {[%clk 0:03:09.8]} 15. exd5 {[%clk
0:02:33.4]} 15... exd5 {[%clk 0:03:11.4]} 16. Rad1 {[%clk 0:01:55.5]} 16... Nb4
{[%clk 0:02:59.8]} 17. a3 {[%clk 0:01:52.6]} 17... Nd3 {[%clk 0:03:00.5]} 18.
Bc1 {[%clk 0:01:50.3]} 18... c4 {[%clk 0:02:56.4]} 19. Ne1 {[%clk 0:01:29.8]}
19... Nxc1 {[%clk 0:02:46.9]} 20. Rxc1 {[%clk 0:01:31.7]} 20... d4 {[%clk
0:02:41.4]} 21. Nb5 {[%clk 0:01:25.9]} 21... Ne4 {[%clk 0:02:42.3]} 22. Nf3
{[%clk 0:01:22.8]} 22... c3 {[%clk 0:02:42]} 23. bxc3 {[%clk 0:01:09.4]} 23...
dxc3 {[%clk 0:02:43.1]} 24. Rfe1 {[%clk 0:01:01.7]} 24... Ra4 {[%clk 0:02:39.3]}
25. Rc2 {[%clk 0:00:49.4]} 25... g5 {[%clk 0:02:35.4]} 26. h3 {[%clk 0:00:47.7]}
26... h5 {[%clk 0:02:35.5]} 27. Nc7 {[%clk 0:00:48]} 27... g4 {[%clk 0:02:33.9]}
28. hxg4 {[%clk 0:00:47.7]} 28... hxg4 {[%clk 0:02:34.8]} 29. Ne6 {[%clk
0:00:37.4]} 29... gxf3 {[%clk 0:02:29.8]} 30. Nxf8 {[%clk 0:00:38.7]} 30... Kxf8
{[%clk 0:02:30.1]} 31. gxf3 {[%clk 0:00:37.9]} 31... Nd2 {[%clk 0:02:25.2]} 32.
Kg2 {[%clk 0:00:36.2]} 32... Rxa3 {[%clk 0:02:24.8]} 33. Re6 {[%clk 0:00:28.5]}
33... Ra5 {[%clk 0:02:12.7]} 34. f4 {[%clk 0:00:26.3]} 34... Rc5 {[%clk
0:02:10.9]} 35. Kg3 {[%clk 0:00:24.4]} 35... Nb3 {[%clk 0:02:10.8]} 36. Ra6
{[%clk 0:00:13.5]} 36... Nd4 {[%clk 0:02:10.5]} 0-1

[Event "*** Titled Tuesday Blitz"]
[Site "Chess.com"]
[Date "2018.05.01"]
[Round "5"]
[White "nau64"]
[Black "sergeikim"]
[Result "1/2-1/2"]
[WhiteElo "2170"]
[BlackElo "2363"]
[TimeControl "180+2"]
[EndTime "14:06:16 PDT"]
[Termination "Game drawn by agreement"]

1. d4 {[%clk 0:03:01.9]} 1... Nf6 {[%clk 0:03:00]} 2. c4 {[%clk 0:03:01.9]} 2...
g6 {[%clk 0:03:01.1]} 3. Nc3 {[%clk 0:03:02.5]} 3... Bg7 {[%clk 0:03:02.1]} 4.
e4 {[%clk 0:03:03.1]} 4... d6 {[%clk 0:03:03.1]} 5. Nf3 {[%clk 0:03:03.9]} 5...
O-O {[%clk 0:03:03.8]} 6. Be2 {[%clk 0:03:04.8]} 6... e5 {[%clk 0:03:04.4]} 7.
O-O {[%clk 0:03:05.7]} 7... exd4 {[%clk 0:03:05.1]} 8. Nxd4 {[%clk 0:03:06.4]}
8... Re8 {[%clk 0:03:06]} 9. f3 {[%clk 0:03:07.5]} 9... Nbd7 {[%clk 0:03:06.7]}
10. Nc2 {[%clk 0:03:07.3]} 10... Nc5 {[%clk 0:03:03.2]} 11. Be3 {[%clk
0:02:56.1]} 11... Nfd7 {[%clk 0:03:02.3]} 12. Qd2 {[%clk 0:02:55]} 12... Re6
{[%clk 0:02:56.5]} 13. Nb4 {[%clk 0:02:51.8]} 13... a5 {[%clk 0:02:51.9]} 14.
Nbd5 {[%clk 0:02:51.9]} 14... c6 {[%clk 0:02:49.9]} 15. Nf4 {[%clk 0:02:51.8]}
15... Re8 {[%clk 0:02:45]} 16. Qxd6 {[%clk 0:02:33.3]} 16... Be5 {[%clk
0:02:28.1]} 17. Qd2 {[%clk 0:02:32.5]} 17... Qh4 {[%clk 0:02:18.7]} 18. g3
{[%clk 0:02:22.9]} 18... Qe7 {[%clk 0:02:17.7]} 19. Bf2 {[%clk 0:01:37.2]} 19...
a4 {[%clk 0:02:13.9]} 20. Rad1 {[%clk 0:01:36.8]} 20... Bg7 {[%clk 0:02:11.4]}
21. Nd3 {[%clk 0:01:33.4]} 21... Nxd3 {[%clk 0:01:54.5]} 22. Bxd3 {[%clk
0:01:34.2]} 22... Ne5 {[%clk 0:01:49.1]} 23. Be2 {[%clk 0:01:34.8]} 23... Be6
{[%clk 0:01:41.9]} 24. Qc2 {[%clk 0:00:55.2]} 24... Qb4 {[%clk 0:01:20.8]} 25.
c5 {[%clk 0:00:48.2]} 25... Nc4 {[%clk 0:01:14.7]} 26. Bxc4 {[%clk 0:00:46.7]}
26... Qxc4 {[%clk 0:01:09.7]} 27. a3 {[%clk 0:00:41.3]} 27... h5 {[%clk
0:00:58.2]} 28. Rfe1 {[%clk 0:00:39.8]} 28... h4 {[%clk 0:00:54.8]} 1/2-1/2

[Event "*** Titled Tuesday Blitz"]
[Site "Chess.com"]
[Date "2018.05.01"]
[Round "5"]
[White "Er_is_geen_hoop_meer"]
[Black "Abrito99"]
[Result "1-0"]
[WhiteElo "2351"]
[BlackElo "2493"]
[TimeControl "180+2"]
[EndTime "14:06:18 PDT"]
[Termination "Er_is_geen_hoop_meer won by checkmate"]

1. b4 {[%clk 0:02:58.8]} 1... d6 {[%clk 0:02:49.2]} 2. Bb2 {[%clk 0:02:58.4]}
2... Nd7 {[%clk 0:02:50.5]} 3. e3 {[%clk 0:02:55.9]} 3... Ngf6 {[%clk
0:02:51.7]} 4. g4 {[%clk 0:02:56.4]} 4... e5 {[%clk 0:02:43.2]} 5. g5 {[%clk
0:02:57.1]} 5... Nd5 {[%clk 0:02:44.1]} 6. h4 {[%clk 0:02:58.5]} 6... N7b6
{[%clk 0:02:27.8]} 7. a3 {[%clk 0:02:56.9]} 7... Bd7 {[%clk 0:02:22.5]} 8. c4
{[%clk 0:02:55.3]} 8... Ne7 {[%clk 0:02:18.9]} 9. Nc3 {[%clk 0:02:54]} 9... Be6
{[%clk 0:02:15.4]} 10. d3 {[%clk 0:02:52.5]} 10... d5 {[%clk 0:02:16.7]} 11. c5
{[%clk 0:02:53.4]} 11... Nd7 {[%clk 0:02:17.2]} 12. Nf3 {[%clk 0:02:53.9]} 12...
h6 {[%clk 0:01:50.4]} 13. Rg1 {[%clk 0:02:53.9]} 13... h5 {[%clk 0:01:48.8]} 14.
Ne2 {[%clk 0:02:47.9]} 14... Ng6 {[%clk 0:01:46.6]} 15. e4 {[%clk 0:02:41.9]}
15... Bg4 {[%clk 0:01:41]} 16. Nh2 {[%clk 0:02:34.6]} 16... Nxh4 {[%clk
0:01:35.5]} 17. exd5 {[%clk 0:02:28.7]} 17... Be7 {[%clk 0:01:15.6]} 18. g6
{[%clk 0:02:28.5]} 18... O-O {[%clk 0:01:13.7]} 19. gxf7+ {[%clk 0:02:25.6]}
19... Rxf7 {[%clk 0:01:14.7]} 20. Qb3 {[%clk 0:02:27.1]} 20... Qf8 {[%clk
0:01:12.5]} 21. O-O-O {[%clk 0:02:26.6]} 21... Kh8 {[%clk 0:01:02.8]} 22. Nxg4
{[%clk 0:02:26]} 22... hxg4 {[%clk 0:01:04.3]} 23. Rh1 {[%clk 0:02:25.6]} 23...
Rxf2 {[%clk 0:01:01.6]} 24. c6 {[%clk 0:02:16.6]} 24... bxc6 {[%clk 0:01:00.5]}
25. dxc6 {[%clk 0:02:18.5]} 25... Nb6 {[%clk 0:00:54.3]} 26. Bxe5 {[%clk
0:02:16.9]} 26... Rf3 {[%clk 0:00:44.6]} 27. Bg2 {[%clk 0:02:15.2]} 27... Re3
{[%clk 0:00:44.9]} 28. Nf4 {[%clk 0:02:10.9]} 28... Qf5 {[%clk 0:00:34.6]} 29.
Be4 {[%clk 0:02:06.7]} 29... Rxe4 {[%clk 0:00:32.3]} 30. dxe4 {[%clk 0:02:08.6]}
30... Qh7 {[%clk 0:00:30.8]} 31. Rxh4 {[%clk 0:02:05.1]} 31... Bxh4 {[%clk
0:00:31.5]} 32. Rh1 {[%clk 0:02:05.7]} 32... Re8 {[%clk 0:00:03.4]} 33. Rxh4
{[%clk 0:02:03.5]} 33... Qxh4 {[%clk 0:00:04.9]} 34. Ng6+ {[%clk 0:02:04]} 34...
Kh7 {[%clk 0:00:06.8]} 35. Nxh4 {[%clk 0:02:04.7]} 35... Rxe5 {[%clk 0:00:08.7]}
36. Qf7 {[%clk 0:02:03.9]} 36... Rg5 {[%clk 0:00:08.6]} 37. Qf4 {[%clk
0:02:02.6]} 37... Kh6 {[%clk 0:00:09.4]} 38. Nf5+ {[%clk 0:02:02.5]} 38... Kg6
{[%clk 0:00:10.9]} 39. Ne7+ {[%clk 0:02:03.8]} 39... Kh5 {[%clk 0:00:10]} 40.
Qh2# {[%clk 0:02:04]} 1-0

[Event "*** Titled Tuesday Blitz"]
[Site "Chess.com"]
[Date "2018.05.01"]
[Round "5"]
[White "MattyDPerrine"]
[Black "Vusatiuk_Vladimir"]
[Result "1-0"]
[WhiteElo "2302"]
[BlackElo "2184"]
[TimeControl "180+2"]
[EndTime "14:06:22 PDT"]
[Termination "MattyDPerrine won by resignation"]

1. Nf3 {[%clk 0:03:01.9]} 1... d5 {[%clk 0:02:54.9]} 2. g3 {[%clk 0:03:03.1]}
2... Bg4 {[%clk 0:02:55.2]} 3. Bg2 {[%clk 0:03:04.3]} 3... Nd7 {[%clk
0:02:55.8]} 4. d4 {[%clk 0:03:05.3]} 4... Ngf6 {[%clk 0:02:56.7]} 5. c4 {[%clk
0:03:05.8]} 5... e6 {[%clk 0:02:57.4]} 6. Nc3 {[%clk 0:03:06.8]} 6... c5 {[%clk
0:02:58.1]} 7. cxd5 {[%clk 0:03:07.5]} 7... exd5 {[%clk 0:02:59.2]} 8. Ne5
{[%clk 0:03:05.6]} 8... Be6 {[%clk 0:02:57.5]} 9. Nxd7 {[%clk 0:02:47.4]} 9...
Qxd7 {[%clk 0:02:57.9]} 10. Bg5 {[%clk 0:02:42.2]} 10... c4 {[%clk 0:02:56.9]}
11. Bxf6 {[%clk 0:02:37.2]} 11... gxf6 {[%clk 0:02:57]} 12. O-O {[%clk
0:02:36.7]} 12... f5 {[%clk 0:02:57.7]} 13. e3 {[%clk 0:02:36.6]} 13... h5
{[%clk 0:02:55.4]} 14. h4 {[%clk 0:02:37.3]} 14... Be7 {[%clk 0:02:52.9]} 15.
Qf3 {[%clk 0:02:36.4]} 15... O-O-O {[%clk 0:02:48.2]} 16. Rfc1 {[%clk
0:02:27.2]} 16... Kb8 {[%clk 0:02:48.1]} 17. b3 {[%clk 0:02:21.9]} 17... Ba3
{[%clk 0:02:48.1]} 18. Rc2 {[%clk 0:02:16.7]} 18... b5 {[%clk 0:02:39.1]} 19.
bxc4 {[%clk 0:02:11.3]} 19... bxc4 {[%clk 0:02:39.9]} 20. Rb1+ {[%clk
0:02:12.1]} 20... Ka8 {[%clk 0:02:40.3]} 21. Nb5 {[%clk 0:02:12.8]} 21... Be7
{[%clk 0:02:33.3]} 22. Rxc4 {[%clk 0:02:02.1]} 22... Rc8 {[%clk 0:01:58.8]} 23.
Ra4 {[%clk 0:02:02.6]} 23... Rb8 {[%clk 0:01:56.4]} 24. Qxd5+ {[%clk 0:01:46.7]}
24... Bxd5 {[%clk 0:01:53.4]} 25. Bxd5+ {[%clk 0:01:45.5]} 25... Rb7 {[%clk
0:01:54.8]} 26. Rxa7+ {[%clk 0:01:42]} 26... Kb8 {[%clk 0:01:54.5]} 27. Rxb7+
{[%clk 0:01:41.1]} 27... Qxb7 {[%clk 0:01:55.2]} 28. Bxb7 {[%clk 0:01:43]} 28...
Kxb7 {[%clk 0:01:56.7]} 29. Nd6+ {[%clk 0:01:39.2]} 29... Kc6 {[%clk 0:01:58]}
30. Nxf5 {[%clk 0:01:35.4]} 30... Bf6 {[%clk 0:01:56.4]} 31. e4 {[%clk
0:01:28.6]} 31... Ra8 {[%clk 0:01:55.5]} 32. Rc1+ {[%clk 0:01:28.3]} 32... Kd7
{[%clk 0:01:56.1]} 33. Rc2 {[%clk 0:01:29.2]} 33... Bd8 {[%clk 0:01:56.5]} 34.
Ng7 {[%clk 0:01:21.3]} 34... Ra3 {[%clk 0:01:48.6]} 35. Nxh5 {[%clk 0:01:19.9]}
35... Bb6 {[%clk 0:01:50.1]} 36. d5 {[%clk 0:01:14.3]} 36... Bd4 {[%clk
0:01:44.2]} 37. Kg2 {[%clk 0:01:12.3]} 37... Kd6 {[%clk 0:01:45.2]} 38. Nf4
{[%clk 0:00:57.9]} 38... Ke5 {[%clk 0:01:44.6]} 39. Re2 {[%clk 0:00:50.4]} 39...
Ba7 {[%clk 0:01:44.9]} 40. h5 {[%clk 0:00:49.9]} 40... Ra6 {[%clk 0:01:44.6]}
41. Nd3+ {[%clk 0:00:36.7]} 41... Kd4 {[%clk 0:01:45.1]} 42. Nb4 {[%clk
0:00:37.4]} 1-0

[Event "*** Titled Tuesday Blitz"]
[Site "Chess.com"]
[Date "2018.05.01"]
[Round "5"]
[White "FearNoEvil12"]
[Black "FLchessplayer"]
[Result "1-0"]
[WhiteElo "1980"]
[BlackElo "2016"]
[TimeControl "180+2"]
[EndTime "14:06:46 PDT"]
[Termination "FearNoEvil12 won on time"]

1. e4 {[%clk 0:03:01.9]} 1... c5 {[%clk 0:02:58.9]} 2. Nc3 {[%clk 0:03:01.6]}
2... d6 {[%clk 0:02:57.5]} 3. f4 {[%clk 0:03:02.9]} 3... g6 {[%clk 0:02:58.3]}
4. Nf3 {[%clk 0:03:02.7]} 4... Bg7 {[%clk 0:02:59.3]} 5. Bc4 {[%clk 0:03:04.1]}
5... a6 {[%clk 0:02:57.5]} 6. a4 {[%clk 0:03:03.4]} 6... Nf6 {[%clk 0:02:58.4]}
7. f5 {[%clk 0:03:04.5]} 7... Nc6 {[%clk 0:02:54.7]} 8. d3 {[%clk 0:03:05.9]}
8... gxf5 {[%clk 0:02:51.4]} 9. O-O {[%clk 0:03:06.3]} 9... fxe4 {[%clk
0:02:52.1]} 10. dxe4 {[%clk 0:03:06.3]} 10... Bg4 {[%clk 0:02:48.8]} 11. h3
{[%clk 0:02:55.2]} 11... Bxf3 {[%clk 0:02:47.9]} 12. Qxf3 {[%clk 0:02:55.4]}
12... Ne5 {[%clk 0:02:48.7]} 13. Qe2 {[%clk 0:02:56.2]} 13... Nxc4 {[%clk
0:02:49.7]} 14. Qxc4 {[%clk 0:02:57.1]} 14... O-O {[%clk 0:02:49.3]} 15. Bg5
{[%clk 0:02:53.4]} 15... Qa5 {[%clk 0:02:31.1]} 16. Bxf6 {[%clk 0:02:46.6]}
16... Bxf6 {[%clk 0:02:30.8]} 17. Rxf6 {[%clk 0:02:47.4]} 17... exf6 {[%clk
0:02:30.6]} 18. Nd5 {[%clk 0:02:48.9]} 18... Rae8 {[%clk 0:02:09.3]} 19. Rf1
{[%clk 0:02:46.6]} 19... Re6 {[%clk 0:02:07.7]} 20. c3 {[%clk 0:02:17.8]} 20...
b5 {[%clk 0:01:52.2]} 21. Qd3 {[%clk 0:01:58.1]} 21... Qxa4 {[%clk 0:01:47.2]}
22. Nxf6+ {[%clk 0:01:50]} 22... Rxf6 {[%clk 0:01:28]} 23. Rxf6 {[%clk
0:01:49.4]} 23... Re8 {[%clk 0:01:28.7]} 24. Qg3+ {[%clk 0:01:37.9]} 24... Kh8
{[%clk 0:01:23.3]} 25. Rxf7 {[%clk 0:01:37.2]} 25... Qd1+ {[%clk 0:01:03.2]} 26.
Kh2 {[%clk 0:01:36.6]} 26... Rg8 {[%clk 0:01:01.3]} 27. Qf2 {[%clk 0:01:20.5]}
27... Rg6 {[%clk 0:00:27.7]} 28. Rf8+ {[%clk 0:01:13.7]} 28... Kg7 {[%clk
0:00:28.6]} 29. Qf7+ {[%clk 0:01:12.8]} 29... Kh6 {[%clk 0:00:29.5]} 30. Qf4+
{[%clk 0:01:12.6]} 30... Kg7 {[%clk 0:00:29.6]} 31. Rf7+ {[%clk 0:01:11.1]}
31... Kg8 {[%clk 0:00:30.4]} 32. Rd7 {[%clk 0:01:00.8]} 1-0

[Event "*** Titled Tuesday Blitz"]
[Site "Chess.com"]
[Date "2018.05.01"]
[Round "5"]
[White "saraswathii"]
[Black "AndrewDGreen"]
[Result "0-1"]
[WhiteElo "2262"]
[BlackElo "2174"]
[TimeControl "180+2"]
[EndTime "14:06:58 PDT"]
[Termination "AndrewDGreen won by resignation"]

1. e4 {[%clk 0:03:01.9]} 1... c5 {[%clk 0:02:59.9]} 2. d3 {[%clk 0:03:02.6]}
2... g6 {[%clk 0:03:01]} 3. Nf3 {[%clk 0:03:03.6]} 3... Bg7 {[%clk 0:03:02.6]}
4. g3 {[%clk 0:03:04.7]} 4... Nc6 {[%clk 0:03:04.2]} 5. Bg2 {[%clk 0:03:06]}
5... d6 {[%clk 0:03:05.9]} 6. O-O {[%clk 0:03:07.1]} 6... e5 {[%clk 0:03:07.5]}
7. c3 {[%clk 0:03:08.1]} 7... Nge7 {[%clk 0:03:09]} 8. Nh4 {[%clk 0:03:08.9]}
8... O-O {[%clk 0:03:09.2]} 9. f4 {[%clk 0:03:10]} 9... exf4 {[%clk 0:02:48.3]}
10. Bxf4 {[%clk 0:03:09.3]} 10... Be6 {[%clk 0:02:41]} 11. Nd2 {[%clk
0:03:08.9]} 11... Qd7 {[%clk 0:02:35.2]} 12. Nhf3 {[%clk 0:03:08.4]} 12... Rad8
{[%clk 0:02:29.3]} 13. Ng5 {[%clk 0:03:08.5]} 13... Bg4 {[%clk 0:02:29.2]} 14.
Qb3 {[%clk 0:03:08.7]} 14... h6 {[%clk 0:02:21.4]} 15. Ngf3 {[%clk 0:03:03.1]}
15... Ne5 {[%clk 0:02:07]} 16. Bxe5 {[%clk 0:02:59.7]} 16... dxe5 {[%clk
0:02:06.3]} 17. Nc4 {[%clk 0:03:00.1]} 17... Qc7 {[%clk 0:01:31.8]} 18. Rad1
{[%clk 0:02:53.6]} 18... Rd7 {[%clk 0:01:10.3]} 19. Rd2 {[%clk 0:02:50.6]} 19...
Be6 {[%clk 0:01:02.5]} 20. Rfd1 {[%clk 0:02:45.4]} 20... Rfd8 {[%clk 0:00:51.6]}
21. Qc2 {[%clk 0:02:44.3]} 21... f6 {[%clk 0:00:36.4]} 22. Ne3 {[%clk
0:02:40.3]} 22... h5 {[%clk 0:00:36.3]} 23. Qa4 {[%clk 0:02:32.6]} 23... a6
{[%clk 0:00:34.2]} 24. Qc2 {[%clk 0:02:28.1]} 24... b5 {[%clk 0:00:34.9]} 25.
Rf2 {[%clk 0:02:25.6]} 25... Bh6 {[%clk 0:00:34.5]} 26. Nf1 {[%clk 0:02:17.7]}
26... Kg7 {[%clk 0:00:30.4]} 27. a4 {[%clk 0:02:16.1]} 27... Qb6 {[%clk
0:00:30]} 28. axb5 {[%clk 0:02:15.9]} 28... axb5 {[%clk 0:00:31.9]} 29. Kh1
{[%clk 0:01:59.4]} 29... b4 {[%clk 0:00:32.6]} 30. cxb4 {[%clk 0:01:55.1]} 30...
cxb4 {[%clk 0:00:25.1]} 31. Ne1 {[%clk 0:01:51.6]} 31... b3 {[%clk 0:00:25]} 32.
Qe2 {[%clk 0:01:49.3]} 32... Rc8 {[%clk 0:00:26.1]} 33. Nd2 {[%clk 0:01:44.5]}
33... Bg4 {[%clk 0:00:23.8]} 34. Nef3 {[%clk 0:01:38.3]} 34... Rc2 {[%clk
0:00:23.8]} 35. Qe1 {[%clk 0:01:34.3]} 35... Rxd3 {[%clk 0:00:18.2]} 36. h3
{[%clk 0:01:28.1]} 36... Bxf3 {[%clk 0:00:18.7]} 37. Bxf3 {[%clk 0:01:27.1]}
37... Qb4 {[%clk 0:00:11.1]} 0-1

[Event "*** Titled Tuesday Blitz"]
[Site "Chess.com"]
[Date "2018.05.01"]
[Round "5"]
[White "eljanov"]
[Black "StoreySniper"]
[Result "1-0"]
[WhiteElo "2655"]
[BlackElo "2365"]
[TimeControl "180+2"]
[EndTime "14:07:08 PDT"]
[Termination "eljanov won by resignation"]

1. c4 {[%clk 0:03:00.5]} 1... c6 {[%clk 0:02:59.4]} 2. Nf3 {[%clk 0:02:59.6]}
2... d5 {[%clk 0:03:00.4]} 3. d4 {[%clk 0:03:00.9]} 3... Nf6 {[%clk 0:03:00.7]}
4. e3 {[%clk 0:03:02.1]} 4... e6 {[%clk 0:03:01.2]} 5. Bd3 {[%clk 0:03:02]} 5...
Nbd7 {[%clk 0:02:56.8]} 6. O-O {[%clk 0:03:01.4]} 6... dxc4 {[%clk 0:02:54.9]}
7. Bxc4 {[%clk 0:03:02.3]} 7... b5 {[%clk 0:02:56.4]} 8. Bd3 {[%clk 0:03:02.4]}
8... Bb7 {[%clk 0:02:57.1]} 9. Nbd2 {[%clk 0:02:53.2]} 9... Bd6 {[%clk
0:02:53.1]} 10. e4 {[%clk 0:02:51.8]} 10... e5 {[%clk 0:02:53.4]} 11. dxe5
{[%clk 0:02:48.9]} 11... Nxe5 {[%clk 0:02:54.3]} 12. Nxe5 {[%clk 0:02:49.3]}
12... Bxe5 {[%clk 0:02:55.4]} 13. Nf3 {[%clk 0:02:49.1]} 13... Bc7 {[%clk
0:02:51]} 14. e5 {[%clk 0:02:48.5]} 14... Nd5 {[%clk 0:02:45.9]} 15. Re1 {[%clk
0:02:49.5]} 15... Nb4 {[%clk 0:02:42.8]} 16. Be4 {[%clk 0:02:42.7]} 16... Qxd1
{[%clk 0:02:40.6]} 17. Rxd1 {[%clk 0:02:44]} 17... O-O {[%clk 0:02:28.8]} 18.
Be3 {[%clk 0:02:24.5]} 18... Nd5 {[%clk 0:02:21.1]} 19. Bxd5 {[%clk 0:02:15.5]}
19... cxd5 {[%clk 0:02:21.7]} 20. Rac1 {[%clk 0:02:15.1]} 20... Rfc8 {[%clk
0:02:16.1]} 21. Bd4 {[%clk 0:02:14.8]} 21... Bb6 {[%clk 0:02:13.3]} 22. Bxb6
{[%clk 0:02:11]} 22... axb6 {[%clk 0:02:14.2]} 23. a3 {[%clk 0:02:11.8]} 23...
Kf8 {[%clk 0:02:08.7]} 24. Nd4 {[%clk 0:02:11.8]} 24... b4 {[%clk 0:01:47.7]}
25. axb4 {[%clk 0:02:10.4]} 25... Rxc1 {[%clk 0:01:34.9]} 26. Rxc1 {[%clk
0:02:11]} 26... Ra4 {[%clk 0:01:35.9]} 27. b3 {[%clk 0:02:03.3]} 27... Rxb4
{[%clk 0:01:36.1]} 28. Rd1 {[%clk 0:02:04.4]} 28... Ba6 {[%clk 0:01:10.5]} 29.
f4 {[%clk 0:02:01.8]} 29... g5 {[%clk 0:00:40.6]} 30. g3 {[%clk 0:02:02.4]}
30... gxf4 {[%clk 0:00:41.2]} 31. gxf4 {[%clk 0:02:03.3]} 31... Bc4 {[%clk
0:00:23.3]} 32. bxc4 {[%clk 0:02:03.3]} 32... dxc4 {[%clk 0:00:23.9]} 33. Kf2
{[%clk 0:02:00.4]} 33... c3 {[%clk 0:00:22.8]} 34. Ke3 {[%clk 0:01:59.3]} 34...
Rb2 {[%clk 0:00:19.6]} 35. Rc1 {[%clk 0:02:00]} 35... Rxh2 {[%clk 0:00:17.3]}
36. Rxc3 {[%clk 0:02:01.2]} 36... Rh3+ {[%clk 0:00:17.1]} 37. Nf3 {[%clk
0:02:02.2]} 37... Kg7 {[%clk 0:00:15.4]} 38. Rc6 {[%clk 0:02:01.5]} 38... b5
{[%clk 0:00:15.4]} 39. Rb6 {[%clk 0:02:02.3]} 39... b4 {[%clk 0:00:15.1]} 40.
Rxb4 {[%clk 0:02:03.2]} 40... Kg6 {[%clk 0:00:16.7]} 41. Ke4 {[%clk 0:02:01.1]}
41... f5+ {[%clk 0:00:16.3]} 42. exf6 {[%clk 0:02:02.1]} 42... Kxf6 {[%clk
0:00:17.1]} 43. Rb6+ {[%clk 0:02:03.2]} 43... Kg7 {[%clk 0:00:17.8]} 44. f5
{[%clk 0:02:03]} 44... Rh1 {[%clk 0:00:16.9]} 45. f6+ {[%clk 0:02:03.7]} 45...
Kh6 {[%clk 0:00:16.4]} 46. Ne5 {[%clk 0:02:03.1]} 46... Re1+ {[%clk 0:00:13.2]}
47. Kf5 {[%clk 0:02:04.2]} 47... Rf1+ {[%clk 0:00:11.5]} 48. Ke6 {[%clk
0:02:05.4]} 48... Rf2 {[%clk 0:00:08.1]} 49. Rb1 {[%clk 0:02:05.3]} 49... Kg5
{[%clk 0:00:07]} 50. f7 {[%clk 0:02:04.2]} 1-0